{"text_format":"1","workbook":"xlsx","n_sheets":7,"sheets":["ניהול","א. פתיח","ב. שאלון למילוי מגיש הבקשה","ג. ציוד פעילות גופנית-זוזו","ד. ציוד נוסף ","ה. סיכום","סיכום מפורט (לשימוש משרדי)"],"not_rendered":{"charts":0,"images":2,"macros":1,"external_links":0,"defined_names":3,"comments":0,"pivot_tables":0},"unopened":[],"bounds":{"document_bytes":16777216,"sheet_cells":100000,"rows_first":2000,"rows_last":500,"rows_between":2000,"halvings":0,"cell_chars":16384,"cell_head_chars":4096},"cells_cut":0,"cells_raw":0,"read":"whole","date_system":"1900"}

{"sheet":"ניהול","index":0,"n_rows":17,"n_cols":4,"rows_kept":17,"cut":false,"hidden":true,"merged":[]}
["סוג המסגרת",null,"פעולות נעילה/ פתיחה"]
["נא לבחור מתוך הרשימה:",null,"כלים","הסבר"]
["מועדון חברתי גילאי 21+",1,null,"הכפתור נועל את הנתונים הנבחרים "]
["מרש\"לים",null,null,"הקובץ  נשלח עם נעילת נתוני התקן ונוסחאות"]
["מרכז רש\"ת/מע\"ש 21+",2,null,"הכפתור פותח את כל הנתונים"]
["מפעל רב נכותי 21+",null,null,"יש להפעיל אותו לאחר  אישור בקשת הגוף"]
["מרכז יום (טיפולי/סיעודי) 21+",null,null,"לצורך נעילת שלב אישור בקשת הגוף"]
["יח' טיפולית במרכז רש\"ת/מע\"ש 21+",3,null,"יש להפעיל את הכפתור אחרי פעולה מס' 2"]
["יח' מזדקנים במרכז רש\"ת",null,null,"ואחרי זה כפתור מס' 1 "]
["מרכז יום לגמלאים",4,null,"הכפתור נדרש במקרים מיוחדים"]
[null,null,null,"במידה ויש לעשות תיקונים אחרי שלב האישור"]
[null,null,null,"או לצרכים טכניים"]
[null,null,null,"להפעלתו יש לעשות פעולה מס' 2"]
[null,null,null,"ואחרי תיקון נתוני האישור לבצע פעולות  3 ו- 1"]
[null,5,null,"סינון ציוד מוזמן בסעיף \"סיכום מפורט\" אינו מוגן"]
[null,null,null,"מפני שהסינון לא עובד במצב נעול, לכן יש להיזהר "]
[null,null,null,"מכול פעולה מעבר מהפעלת הסינון באמצאות הכפתורים"]

{"sheet":"א. פתיח","index":1,"n_rows":43,"n_cols":3,"rows_kept":43,"cut":false,"hidden":false,"merged":[[31,1,31,7],[30,1,30,10],[26,1,26,10],[27,1,27,10],[29,1,29,10]]}
[]
[]
[]
[]
[]
[]
[]
[]
[]
[null,"גרסה: 3.3.2024"]
[null,"תקן ציוד פעילות גופנית - \"זוזו\" ביחד לחיים בריאים"]
[]
[null,"קישור לפרוייקט \"זוזו\"- ביחד לחיים בריאים"]
[]
[null,"רקע כללי"]
[null,"הסיוע ניתן לשיפוץ או ציוד.  תקן זה עוסק בציוד. "]
[null,"יש להיכנס לאתר קרן שלם| פיתוח פיזי |מענקים| מענק זוזו ולפעול בהתאם להנחיות. מצב קישורים לנוחיותכם:"]
[null,"מענק זוזו","לציוד בלבד עד 17,000 ₪."]
[null,null,"לשיפוץ וציוד עד 150,000 ₪ ועד 80%  מהעלות הכוללת, הנמוך מביניהם. עבור השיפוץ יש להעסיק מעצב פנים כחלק מהעלות הכוללת."]
[]
[null,"מטרת תקן ציוד"]
[null,"לסייע לרשויות או גופים המפעילים מסגרות לבנות את רשימת הציוד בהתאם להיקף ולסוג פעילותם. "]
[null,"התקן מהווה רשימת ציוד מומלצת"]
[null,"לא נדרש להציג שתי הצעות מחיר למעט בגיליון ציוד נוסף, עבור ציוד שאינו נמצא בתקן ובלבד שהוא קשור למהות הפרוייקט."]
[]
[null,"הבהרות"]
[]
[null,"לתשומת ליבכם, מיזם זוזו מותנה באישורים רפואיים והתחייבות להפעלת הפעילות הגופנית כמפורט בהנחיות."]
[]
[null,"במידה וקיים צורך בציוד אשר אינו מופיע בתקן, ניתן לבקש בגיליון ד'- ציוד נוסף. "]
[null,"הסכומים המופיעים בטבלאות כוללים מע\"מ בשיעור 17%. "]
[null,"גובה הסיוע כפוף להחלטות ומדיניות הנהלת הקרן המשתנות/מתעדכנות  באתר הקרן."]
[]
[null,"הנחיות למילוי הקובץ:"]
[null,"שלב הגשת הבקשה:"]
[null,"עליכם למלא גיליון ב' בטרם מילוי הגיליונות האחרים"]
[null,"גיליונות ג' עד ד' עליכם למלא רק עמודות הצבועות בירוק"]
[null,"אין לגעת בתאים האחרים- תאים אלו \"נעולים\""]
[]
[null,"שלב הדיווח על ההוצאות:"]
[null,"לאחר אישור הבקשה יוחזר הגיליון עם הפריטים המאושרים "]
[null,"גיליונות ד' עד ח' עליכם למלא רק עמודות הצבועות בכתום "]
[null,"אין לגעת בתאים האחרים- תאים אלו \"נעולים\""]

{"sheet":"ב. שאלון למילוי מגיש הבקשה","index":2,"n_rows":41,"n_cols":5,"rows_kept":41,"cut":false,"hidden":true,"merged":[[18,2,18,3],[30,2,30,3],[36,2,36,3],[28,2,28,3],[26,2,26,3],[24,2,24,3]]}
[]
[]
[]
[]
[]
[]
[]
[null,{"$f":"'א. פתיח'!B11","v":"תקן ציוד פעילות גופנית - \"זוזו\" ביחד לחיים בריאים"}]
[]
[null,"שאלון למגיש הבקשה"]
[null,"הערות והסברים למילוי הבקשה"]
[null,"יש למלא את השאלון לעיל לפני מעבר לכתב הכמויות"]
[null,"הגוף המבקש מתבקש למלא פרטים בתאים המסומנים בצבע ירוק בלבד. אין למלא תאים אחרים."]
[null,"כל מחירי התקן כוללים מע\"מ בשיעור של 17%."]
[null,"קרן שלם מיועדת לאנשים עם מש\"ה. במסגרת הנותנת מענה רב נכותי, ההתיחסות הינה בהתאם למספר מקבלי השרות המוכרים עם מש\"ה."]
[]
[]
[]
[null,null,"תאריך הגשת הבקשה"]
[]
[null,null,"שם המסגרת"]
[]
[null,null,"סוג המסגרת",null,"נא לבחור מתוך הרשימה:"]
[]
[null,null,"שם הרשות"]
[]
[null,null,"שם הארגון המפעיל"]
[]
[null,null,"כתובת המסגרת"]
[]
[null,null,"שם ושם משפחה איש קשר"]
[]
[null,null,"תפקיד איש קשר"]
[]
[null,null,"נייד איש קשר "]
[]
[null,null,"מייל איש קשר"]
[]
[null,null,"מספר האנשים שעבורם מיועד הפרויקט"]
[]
[null,null,"כמה מתוכם מוכרים עם (מש\"ה/ לקות חושית/הנמכה קוגניטיבית)"]

{"sheet":"ג. ציוד פעילות גופנית-זוזו","index":3,"n_rows":21,"n_cols":15,"rows_kept":21,"cut":false,"hidden":false,"merged":[[17,1,17,2],[4,1,4,4],[4,7,4,9],[4,11,4,14]]}
[null,"ציוד פעילות גופנית- זוזו",null,null,null,null,null,"שלב הגשת בקשת הגוף:",null,null,null,"שלב הדיווח לתשלום לאחר ביצוע:"]
[null,{"$f":"'ב. שאלון למילוי מגיש הבקשה'!C21","v":"שם המסגרת"},null,{"$f":"'ב. שאלון למילוי מגיש הבקשה'!E21","v":0},null,null,null,"יש למלא גיליון ג' בטרם מילוי הגיליונות האחרים.",null,null,null,"לאחר אישור הבקשה יוחזר הגיליון עם הפריטים המאושרים"]
[null,{"$f":"'ב. שאלון למילוי מגיש הבקשה'!C23","v":"סוג המסגרת"},null,{"$f":"'ב. שאלון למילוי מגיש הבקשה'!E23","v":"נא לבחור מתוך הרשימה:"},null,null,null,"גיליונות ד' עד ט' -יש למלא רק עמודות הצבועות בירוק",null,null,null,"גיליונות ד' עד ח' יש למלא רק עמודות הצבועות בכתום/ורוד"]
[null,{"$f":"'ב. שאלון למילוי מגיש הבקשה'!C39","v":"מספר האנשים שעבורם מיועד הפרויקט"},null,{"$f":"'ב. שאלון למילוי מגיש הבקשה'!E39","v":0},null,null,null,"אין לגעת בתאים האחרים- תאים אלו יהיו נעולים",null,null,null,"אין לגעת בתאים האחרים- תאים אלו יהיו נעולים"]
[null,"תקן",null,null,null,null,null,"בקשת הגוף",null,null,null,"דיווח לתשלום"]
[null,"פריטים","תיאור","כמות תקן למסגרת","מחיר ליחידה","תקציב מומלץ לפי תקן",null,"כמות מבוקשת","תקציב מבוקש לקבוצה","הערות הגוף",null,"הפריט שנרכש","מס' חשבונית מס","תאריך חשבונית מס","סכום כולל מע\"מ"]
[null,"ציוד עזר","טלויזיה  65' + מסך הגנה",1,4500,{"$f":"D7*E7","v":4500},null,null,{"$f":"E7*H7","v":0}]
[null,null,"מתקן תליה לטלוויזיה",1,250,{"$f":"D8*E8","v":250},null,null,{"$f":"E8*H8","v":0}]
[null,null,"ארון איחסון הציוד",1,3000,3000,null,null,0]
[null,null,"רולאפ/שילוט של המיזם (לינק ללוגו)",1,1600,1600,null,null,0]
[null,"ציוד ספורט","טבעות פילאטיס",10,130,1300,null,null,0]
[null,null,"מזרן פילאטיס",10,100,1000,null,null,0]
[null,null,"מוט אימון פילאטיס",10,100,1000,null,null,0]
[null,null,"גומיית פילאטיס",10,100,1000,null,null,0]
[null,null,"כדור over ball",10,100,1000,null,null,0]
[null,null,"כרית שעועית ",10,100,1000,null,null,0]
[null,null,"חולצות עם לוגו הפרויקט (לינק ללוגו)",{"$f":"D4","v":0},70,0,null,null,0]
[null,"סה\"כ ציוד פעילות ספורט (כולל מע\"מ)",null,null,null,{"$f":"SUM(F7:F17)","v":15650},null,null,{"$f":"SUM(I7:I17)","v":0},{"$f":"B18","v":"סה\"כ ציוד פעילות ספורט (כולל מע\"מ)"},null,{"$f":"J18","v":"סה\"כ ציוד פעילות ספורט (כולל מע\"מ)"},null,null,{"$f":"SUM(O7:O17)","v":0}]
[]
[null,"הערה:"]
[null,"קיצור דרך לאתר הפרויקט"]

{"sheet":"ד. ציוד נוסף ","index":4,"n_rows":29,"n_cols":18,"rows_kept":29,"cut":false,"hidden":false,"merged":[[5,14,5,17],[5,7,5,9],[5,4,5,6],[5,10,5,12]]}
[null,"ציוד נוסף",null,null,null,null,null,null,null,null,"שלב הגשת בקשת הגוף:",null,null,null,"שלב הדיווח לתשלום לאחר ביצוע:"]
[null,"ניתן להכניס בטבלה זאת ציוד שאינו מופיע  בתקן.  יש להציג  2  הצעות מחיר  ולציין  בטורים  K-L  את  ההצעה המועדפת. ",null,null,null,null,null,null,null,null,"יש למלא גיליון ג' בטרם מילוי הגיליונות האחרים.",null,null,null,"לאחר אישור הבקשה יוחזר הגיליון עם הפריטים המאושרים"]
[null,{"$f":"'ב. שאלון למילוי מגיש הבקשה'!C21","v":"שם המסגרת"},null,{"$f":"'ב. שאלון למילוי מגיש הבקשה'!E21","v":0},null,null,"נקלט אוטומטית מהשאלון למילוי מגיש הבקשה",null,null,null,"גיליונות ד' עד ט' -עליכם למלא רק עמודות הצבועות בירוק",null,null,null,"גיליונות ד' עד ח', יש למלא רק עמודות הצבועות בכתום/ורוד"]
[null,{"$f":"'ב. שאלון למילוי מגיש הבקשה'!C23","v":"סוג המסגרת"},null,{"$f":"'ב. שאלון למילוי מגיש הבקשה'!E23","v":"נא לבחור מתוך הרשימה:"},null,null,null,null,null,null,"אין לגעת בתאים האחרים- תאים אלו יהיו נעולים",null,null,null,"אין לגעת בתאים האחרים- תאים אלו יהיו נעולים"]
[null,{"$f":"'ב. שאלון למילוי מגיש הבקשה'!C39","v":"מספר האנשים שעבורם מיועד הפרויקט"},null,{"$f":"'ב. שאלון למילוי מגיש הבקשה'!E39","v":0}]
[null,"ציוד נוסף",null,null,"הצעה ראשונה ",null,null," הצעה שניה",null,null,"הצעה מועדפת",null,null,null,"דיווח לתשלום"]
[null,"תאור הציוד","יעוד הציוד","כמות מבוקשת","הספק 1","מחיר ליחידה ","סכום ","שם הספק 2","מחיר ליחידה ","סכום","הספק המועדף","מחיר ליחידה ","סכום",null,"הפריט שנרכש","מס' חשבונית מס ","תאריך חשבונית מס","סכום כולל מעמ"]
[null,null,null,null,null,null,{"$f":"D8*F8","v":0},null,null,{"$f":"$D8*I8","v":0},null,null,{"$f":"D8*L8","v":0}]
[null,null,null,null,null,null,0,null,null,{"$f":"$D9*I9","v":0},null,null,0]
[null,null,null,null,null,null,0,null,null,0,null,null,0]
[null,null,null,null,null,null,0,null,null,0,null,null,0]
[null,null,null,null,null,null,0,null,null,0,null,null,0]
[null,null,null,null,null,null,0,null,null,0,null,null,0]
[null,null,null,null,null,null,0,null,null,0,null,null,0]
[null,null,null,null,null,null,0,null,null,0,null,null,0]
[null,null,null,null,null,null,0,null,null,0,null,null,0]
[null,null,null,null,null,null,0,null,null,0,null,null,0]
[null,null,null,null,null,null,0,null,null,0,null,null,0]
[null,null,null,null,null,null,0,null,null,0,null,null,{"$f":"D19*L19","v":0}]
[null,null,null,null,null,null,0,null,null,0,null,null,0]
[null,null,null,null,null,null,0,null,null,0,null,null,0]
[null,null,null,null,null,null,0,null,null,0,null,null,0]
[null,null,null,null,null,null,0,null,null,0,null,null,0]
[null,null,null,null,null,null,0,null,null,0,null,null,0]
[null,null,null,null,null,null,0,null,null,0,null,null,0]
[null,null,null,null,null,null,0,null,null,0,null,null,0]
[null,null,null,null,null,null,0,null,null,0,null,null,0]
[null,null,null,null,null,null,0,null,null,0,null,null,0]
[null,"סה\"כ  ציוד נוסף(כולל מע\"מ)",null,null,null,null,{"$f":"SUM(G8:G28)","v":0},null,null,{"$f":"SUM(J8:J28)","v":0},null,null,{"$f":"SUM(M8:M28)","v":0},null,{"$f":"B29","v":"סה\"כ  ציוד נוסף(כולל מע\"מ)"},null,null,{"$f":"SUM(R8:R28)","v":0}]

{"sheet":"ה. סיכום","index":5,"n_rows":34,"n_cols":4,"rows_kept":34,"cut":false,"hidden":false,"merged":[]}
[]
[]
[]
[]
[]
[]
[]
[null,{"$f":"'א. פתיח'!B11","v":"תקן ציוד פעילות גופנית - \"זוזו\" ביחד לחיים בריאים"}]
[]
[null,"דוח ביצוע מסכם"]
[]
[null,"הנחיות לקבלת תשלום : "]
[null,"יש למלא את ההוצאות בפועל בכל אחד מהגיליונות הרלבנטיים הקודמים. הסכומים יעודכנו אוטומטית בגיליון זה."]
[null,"יש לשלוח את הקובץ הזה במלואו באימייל המצויין מטה."]
[null,"יש להדפיס עמוד זה ולהחתים כנדרש "]
[null,"בנוסף יש לצרף :"]
[null,"צילומי חשבוניות מס / קבלות או כרטסת חתומה ע\"י רו\"ח של ארגון מפעיל/ גזבר הרשות"]
[null,"את הדיווחים  לתשלום  ואת הקובץ במלואו יש לשלוח במייל : limor@kshalem.org.il"]
[null,"באחריות השולח לוודא כי החמרים הגיעו ליעדם "]
[]
[null,{"$f":"'ב. שאלון למילוי מגיש הבקשה'!C21","v":"שם המסגרת"},{"$f":"'ב. שאלון למילוי מגיש הבקשה'!E21","v":0}]
[null,{"$f":"'ב. שאלון למילוי מגיש הבקשה'!C21","v":"שם המסגרת"},{"$f":"'ב. שאלון למילוי מגיש הבקשה'!E23","v":"נא לבחור מתוך הרשימה:"}]
[null,{"$f":"'ב. שאלון למילוי מגיש הבקשה'!C39","v":"מספר האנשים שעבורם מיועד הפרויקט"},{"$f":"'ב. שאלון למילוי מגיש הבקשה'!E39","v":0}]
[]
[null,"ציוד על פי נושאים","סכום מאושר","סכום שבוצע בפועל"]
[null,{"$f":"'ג. ציוד פעילות גופנית-זוזו'!B1","v":"ציוד פעילות גופנית- זוזו"},{"$f":"'ג. ציוד פעילות גופנית-זוזו'!I18","v":0},{"$f":"'ג. ציוד פעילות גופנית-זוזו'!O18","v":0}]
[null,{"$f":"'ד. ציוד נוסף '!B1","v":"ציוד נוסף"},{"$f":"'ד. ציוד נוסף '!M29","v":0},{"$f":"'ד. ציוד נוסף '!R29","v":0}]
[null,"סה\"כ בקשה כולל מע\"מ",{"$f":"SUM(C26:C27)","v":0},{"$f":"SUM(D26:D27)","v":0}]
[]
[null,"מספר פרוייקט קרן שלם"]
[]
[null,"חתימה וחותמת גזבר/רו\"ח"]
[]
[null,"תאריך "]

{"sheet":"סיכום מפורט (לשימוש משרדי)","index":6,"n_rows":44,"n_cols":8,"rows_kept":44,"cut":false,"hidden":false,"merged":[]}
[{"$f":"'א. פתיח'!B11","v":"תקן ציוד פעילות גופנית - \"זוזו\" ביחד לחיים בריאים"}]
["מספר מק\"ט",{"$f":"'ה. סיכום'!C30","v":0}]
[{"$f":"'ב. שאלון למילוי מגיש הבקשה'!C21","v":"שם המסגרת"},{"$f":"'ב. שאלון למילוי מגיש הבקשה'!E21","v":0}]
[{"$f":"'ב. שאלון למילוי מגיש הבקשה'!C23","v":"סוג המסגרת"},{"$f":"'ב. שאלון למילוי מגיש הבקשה'!E23","v":"נא לבחור מתוך הרשימה:"}]
[{"$f":"'ב. שאלון למילוי מגיש הבקשה'!C39","v":"מספר האנשים שעבורם מיועד הפרויקט"},{"$f":"'ב. שאלון למילוי מגיש הבקשה'!E39","v":0}]
[null,"בקשה / אישור",null,null,"דיווח לתשלום"]
[{"$f":"'ג. ציוד פעילות גופנית-זוזו'!C6","v":"תיאור"},{"$f":"'ג. ציוד פעילות גופנית-זוזו'!H6","v":"כמות מבוקשת"},{"$f":"'ג. ציוד פעילות גופנית-זוזו'!I6","v":"תקציב מבוקש לקבוצה"},null,{"$f":"'ג. ציוד פעילות גופנית-זוזו'!L6","v":"הפריט שנרכש"},{"$f":"'ג. ציוד פעילות גופנית-זוזו'!M6","v":"מס' חשבונית מס"},{"$f":"'ג. ציוד פעילות גופנית-זוזו'!N6","v":"תאריך חשבונית מס"},{"$f":"'ג. ציוד פעילות גופנית-זוזו'!O6","v":"סכום כולל מע\"מ"}]
[{"$f":"'ג. ציוד פעילות גופנית-זוזו'!B1","v":"ציוד פעילות גופנית- זוזו"},null,null,null,{"$f":"A8","v":"ציוד פעילות גופנית- זוזו"}]
[{"$f":"'ג. ציוד פעילות גופנית-זוזו'!C7","v":"טלויזיה  65' + מסך הגנה"},{"$f":"'ג. ציוד פעילות גופנית-זוזו'!H7","v":0},{"$f":"'ג. ציוד פעילות גופנית-זוזו'!I7","v":0},null,{"$f":"'ג. ציוד פעילות גופנית-זוזו'!L7","v":0},{"$f":"'ג. ציוד פעילות גופנית-זוזו'!M7","v":0},{"$f":"IF(F9=0,\"\",'ג. ציוד פעילות גופנית-זוזו'!N7)","v":""},{"$f":"'ג. ציוד פעילות גופנית-זוזו'!O7","v":0}]
[{"$f":"'ג. ציוד פעילות גופנית-זוזו'!C8","v":"מתקן תליה לטלוויזיה"},{"$f":"'ג. ציוד פעילות גופנית-זוזו'!H8","v":0},{"$f":"'ג. ציוד פעילות גופנית-זוזו'!I8","v":0},null,{"$f":"'ג. ציוד פעילות גופנית-זוזו'!L8","v":0},{"$f":"'ג. ציוד פעילות גופנית-זוזו'!M8","v":0},{"$f":"IF(F10=0,\"\",'ג. ציוד פעילות גופנית-זוזו'!N8)","v":""},{"$f":"'ג. ציוד פעילות גופנית-זוזו'!O8","v":0}]
[{"$f":"'ג. ציוד פעילות גופנית-זוזו'!C9","v":"ארון איחסון הציוד"},{"$f":"'ג. ציוד פעילות גופנית-זוזו'!H9","v":0},{"$f":"'ג. ציוד פעילות גופנית-זוזו'!I9","v":0},null,{"$f":"'ג. ציוד פעילות גופנית-זוזו'!L9","v":0},{"$f":"'ג. ציוד פעילות גופנית-זוזו'!M9","v":0},{"$f":"IF(F11=0,\"\",'ג. ציוד פעילות גופנית-זוזו'!N9)","v":""},{"$f":"'ג. ציוד פעילות גופנית-זוזו'!O9","v":0}]
[{"$f":"'ג. ציוד פעילות גופנית-זוזו'!C10","v":"רולאפ/שילוט של המיזם (לינק ללוגו)"},{"$f":"'ג. ציוד פעילות גופנית-זוזו'!H10","v":0},{"$f":"'ג. ציוד פעילות גופנית-זוזו'!I10","v":0},null,{"$f":"'ג. ציוד פעילות גופנית-זוזו'!L10","v":0},{"$f":"'ג. ציוד פעילות גופנית-זוזו'!M10","v":0},{"$f":"IF(F12=0,\"\",'ג. ציוד פעילות גופנית-זוזו'!N10)","v":""},{"$f":"'ג. ציוד פעילות גופנית-זוזו'!O10","v":0}]
[{"$f":"'ג. ציוד פעילות גופנית-זוזו'!C11","v":"טבעות פילאטיס"},{"$f":"'ג. ציוד פעילות גופנית-זוזו'!H11","v":0},{"$f":"'ג. ציוד פעילות גופנית-זוזו'!I11","v":0},null,{"$f":"'ג. ציוד פעילות גופנית-זוזו'!L11","v":0},{"$f":"'ג. ציוד פעילות גופנית-זוזו'!M11","v":0},{"$f":"IF(F13=0,\"\",'ג. ציוד פעילות גופנית-זוזו'!N11)","v":""},{"$f":"'ג. ציוד פעילות גופנית-זוזו'!O11","v":0}]
[{"$f":"'ג. ציוד פעילות גופנית-זוזו'!C12","v":"מזרן פילאטיס"},{"$f":"'ג. ציוד פעילות גופנית-זוזו'!H12","v":0},{"$f":"'ג. ציוד פעילות גופנית-זוזו'!I12","v":0},null,{"$f":"'ג. ציוד פעילות גופנית-זוזו'!L12","v":0},{"$f":"'ג. ציוד פעילות גופנית-זוזו'!M12","v":0},{"$f":"IF(F14=0,\"\",'ג. ציוד פעילות גופנית-זוזו'!N12)","v":""},{"$f":"'ג. ציוד פעילות גופנית-זוזו'!O12","v":0}]
[{"$f":"'ג. ציוד פעילות גופנית-זוזו'!C13","v":"מוט אימון פילאטיס"},{"$f":"'ג. ציוד פעילות גופנית-זוזו'!H13","v":0},{"$f":"'ג. ציוד פעילות גופנית-זוזו'!I13","v":0},null,{"$f":"'ג. ציוד פעילות גופנית-זוזו'!L13","v":0},{"$f":"'ג. ציוד פעילות גופנית-זוזו'!M13","v":0},{"$f":"IF(F15=0,\"\",'ג. ציוד פעילות גופנית-זוזו'!N13)","v":""},{"$f":"'ג. ציוד פעילות גופנית-זוזו'!O13","v":0}]
[{"$f":"'ג. ציוד פעילות גופנית-זוזו'!C14","v":"גומיית פילאטיס"},{"$f":"'ג. ציוד פעילות גופנית-זוזו'!H14","v":0},{"$f":"'ג. ציוד פעילות גופנית-זוזו'!I14","v":0},null,{"$f":"'ג. ציוד פעילות גופנית-זוזו'!L14","v":0},{"$f":"'ג. ציוד פעילות גופנית-זוזו'!M14","v":0},{"$f":"IF(F16=0,\"\",'ג. ציוד פעילות גופנית-זוזו'!N14)","v":""},{"$f":"'ג. ציוד פעילות גופנית-זוזו'!O14","v":0}]
[{"$f":"'ג. ציוד פעילות גופנית-זוזו'!C15","v":"כדור over ball"},{"$f":"'ג. ציוד פעילות גופנית-זוזו'!H15","v":0},{"$f":"'ג. ציוד פעילות גופנית-זוזו'!I15","v":0},null,{"$f":"'ג. ציוד פעילות גופנית-זוזו'!L15","v":0},{"$f":"'ג. ציוד פעילות גופנית-זוזו'!M15","v":0},{"$f":"IF(F17=0,\"\",'ג. ציוד פעילות גופנית-זוזו'!N15)","v":""},{"$f":"'ג. ציוד פעילות גופנית-זוזו'!O15","v":0}]
[{"$f":"'ג. ציוד פעילות גופנית-זוזו'!C16","v":"כרית שעועית "},{"$f":"'ג. ציוד פעילות גופנית-זוזו'!H16","v":0},{"$f":"'ג. ציוד פעילות גופנית-זוזו'!I16","v":0},null,{"$f":"'ג. ציוד פעילות גופנית-זוזו'!L16","v":0},{"$f":"'ג. ציוד פעילות גופנית-זוזו'!M16","v":0},{"$f":"IF(F18=0,\"\",'ג. ציוד פעילות גופנית-זוזו'!N16)","v":""},{"$f":"'ג. ציוד פעילות גופנית-זוזו'!O16","v":0}]
[{"$f":"'ג. ציוד פעילות גופנית-זוזו'!C17","v":"חולצות עם לוגו הפרויקט (לינק ללוגו)"},{"$f":"'ג. ציוד פעילות גופנית-זוזו'!H17","v":0},{"$f":"'ג. ציוד פעילות גופנית-זוזו'!I17","v":0},null,{"$f":"'ג. ציוד פעילות גופנית-זוזו'!L17","v":0},{"$f":"'ג. ציוד פעילות גופנית-זוזו'!M17","v":0},{"$f":"IF(F19=0,\"\",'ג. ציוד פעילות גופנית-זוזו'!N17)","v":""},{"$f":"'ג. ציוד פעילות גופנית-זוזו'!O17","v":0}]
["סה\"כ ציוד ספורט/ זוזו כולל מע\"מ",null,{"$f":"SUM(C9:C19)","v":0},null,{"$f":"A20","v":"סה\"כ ציוד ספורט/ זוזו כולל מע\"מ"},null,{"$f":"IF(F20=0,\"\",'ג. ציוד פעילות גופנית-זוזו'!N18)","v":""},{"$f":"SUM(H9:H19)","v":0}]
[{"$f":"'ד. ציוד נוסף '!B1","v":"ציוד נוסף"},null,null,null,{"$f":"A21","v":"ציוד נוסף"}]
[{"$f":"'ד. ציוד נוסף '!B8","v":0},{"$f":"'ד. ציוד נוסף '!D8","v":0},{"$f":"'ד. ציוד נוסף '!M8","v":0},null,{"$f":"'ד. ציוד נוסף '!O8","v":0},{"$f":"'ד. ציוד נוסף '!P8","v":0},{"$f":"IF(F22=0,\"\",'ד. ציוד נוסף '!Q8)","v":""},{"$f":"'ד. ציוד נוסף '!R8","v":0}]
[{"$f":"'ד. ציוד נוסף '!B9","v":0},{"$f":"'ד. ציוד נוסף '!D9","v":0},{"$f":"'ד. ציוד נוסף '!M9","v":0},null,{"$f":"'ד. ציוד נוסף '!O9","v":0},{"$f":"'ד. ציוד נוסף '!P9","v":0},{"$f":"IF(F23=0,\"\",'ד. ציוד נוסף '!Q9)","v":""},{"$f":"'ד. ציוד נוסף '!R9","v":0}]
[{"$f":"'ד. ציוד נוסף '!B10","v":0},{"$f":"'ד. ציוד נוסף '!D10","v":0},{"$f":"'ד. ציוד נוסף '!M10","v":0},null,{"$f":"'ד. ציוד נוסף '!O10","v":0},{"$f":"'ד. ציוד נוסף '!P10","v":0},{"$f":"IF(F24=0,\"\",'ד. ציוד נוסף '!Q10)","v":""},{"$f":"'ד. ציוד נוסף '!R10","v":0}]
[{"$f":"'ד. ציוד נוסף '!B11","v":0},{"$f":"'ד. ציוד נוסף '!D11","v":0},{"$f":"'ד. ציוד נוסף '!M11","v":0},null,{"$f":"'ד. ציוד נוסף '!O11","v":0},{"$f":"'ד. ציוד נוסף '!P11","v":0},{"$f":"IF(F25=0,\"\",'ד. ציוד נוסף '!Q11)","v":""},{"$f":"'ד. ציוד נוסף '!R11","v":0}]
[{"$f":"'ד. ציוד נוסף '!B12","v":0},{"$f":"'ד. ציוד נוסף '!D12","v":0},{"$f":"'ד. ציוד נוסף '!M12","v":0},null,{"$f":"'ד. ציוד נוסף '!O12","v":0},{"$f":"'ד. ציוד נוסף '!P12","v":0},{"$f":"IF(F26=0,\"\",'ד. ציוד נוסף '!Q12)","v":""},{"$f":"'ד. ציוד נוסף '!R12","v":0}]
[{"$f":"'ד. ציוד נוסף '!B13","v":0},{"$f":"'ד. ציוד נוסף '!D13","v":0},{"$f":"'ד. ציוד נוסף '!M13","v":0},null,{"$f":"'ד. ציוד נוסף '!O13","v":0},{"$f":"'ד. ציוד נוסף '!P13","v":0},{"$f":"IF(F27=0,\"\",'ד. ציוד נוסף '!Q13)","v":""},{"$f":"'ד. ציוד נוסף '!R13","v":0}]
[{"$f":"'ד. ציוד נוסף '!B14","v":0},{"$f":"'ד. ציוד נוסף '!D14","v":0},{"$f":"'ד. ציוד נוסף '!M14","v":0},null,{"$f":"'ד. ציוד נוסף '!O14","v":0},{"$f":"'ד. ציוד נוסף '!P14","v":0},{"$f":"IF(F28=0,\"\",'ד. ציוד נוסף '!Q14)","v":""},{"$f":"'ד. ציוד נוסף '!R14","v":0}]
[{"$f":"'ד. ציוד נוסף '!B15","v":0},{"$f":"'ד. ציוד נוסף '!D15","v":0},{"$f":"'ד. ציוד נוסף '!M15","v":0},null,{"$f":"'ד. ציוד נוסף '!O15","v":0},{"$f":"'ד. ציוד נוסף '!P15","v":0},{"$f":"IF(F29=0,\"\",'ד. ציוד נוסף '!Q15)","v":""},{"$f":"'ד. ציוד נוסף '!R15","v":0}]
[{"$f":"'ד. ציוד נוסף '!B16","v":0},{"$f":"'ד. ציוד נוסף '!D16","v":0},{"$f":"'ד. ציוד נוסף '!M16","v":0},null,{"$f":"'ד. ציוד נוסף '!O16","v":0},{"$f":"'ד. ציוד נוסף '!P16","v":0},{"$f":"IF(F30=0,\"\",'ד. ציוד נוסף '!Q16)","v":""},{"$f":"'ד. ציוד נוסף '!R16","v":0}]
[{"$f":"'ד. ציוד נוסף '!B17","v":0},{"$f":"'ד. ציוד נוסף '!D17","v":0},{"$f":"'ד. ציוד נוסף '!M17","v":0},null,{"$f":"'ד. ציוד נוסף '!O17","v":0},{"$f":"'ד. ציוד נוסף '!P17","v":0},{"$f":"IF(F31=0,\"\",'ד. ציוד נוסף '!Q17)","v":""},{"$f":"'ד. ציוד נוסף '!R17","v":0}]
[{"$f":"'ד. ציוד נוסף '!B18","v":0},{"$f":"'ד. ציוד נוסף '!D18","v":0},{"$f":"'ד. ציוד נוסף '!M18","v":0},null,{"$f":"'ד. ציוד נוסף '!O18","v":0},{"$f":"'ד. ציוד נוסף '!P18","v":0},{"$f":"IF(F32=0,\"\",'ד. ציוד נוסף '!Q18)","v":""},{"$f":"'ד. ציוד נוסף '!R18","v":0}]
[{"$f":"'ד. ציוד נוסף '!B19","v":0},{"$f":"'ד. ציוד נוסף '!D19","v":0},{"$f":"'ד. ציוד נוסף '!M19","v":0},null,{"$f":"'ד. ציוד נוסף '!O19","v":0},{"$f":"'ד. ציוד נוסף '!P19","v":0},{"$f":"IF(F33=0,\"\",'ד. ציוד נוסף '!Q19)","v":""},{"$f":"'ד. ציוד נוסף '!R19","v":0}]
[{"$f":"'ד. ציוד נוסף '!B20","v":0},{"$f":"'ד. ציוד נוסף '!D20","v":0},{"$f":"'ד. ציוד נוסף '!M20","v":0},null,{"$f":"'ד. ציוד נוסף '!O20","v":0},{"$f":"'ד. ציוד נוסף '!P20","v":0},{"$f":"IF(F34=0,\"\",'ד. ציוד נוסף '!Q20)","v":""},{"$f":"'ד. ציוד נוסף '!R20","v":0}]
[{"$f":"'ד. ציוד נוסף '!B21","v":0},{"$f":"'ד. ציוד נוסף '!D21","v":0},{"$f":"'ד. ציוד נוסף '!M21","v":0},null,{"$f":"'ד. ציוד נוסף '!O21","v":0},{"$f":"'ד. ציוד נוסף '!P21","v":0},{"$f":"IF(F35=0,\"\",'ד. ציוד נוסף '!Q21)","v":""},{"$f":"'ד. ציוד נוסף '!R21","v":0}]
[{"$f":"'ד. ציוד נוסף '!B22","v":0},{"$f":"'ד. ציוד נוסף '!D22","v":0},{"$f":"'ד. ציוד נוסף '!M22","v":0},null,{"$f":"'ד. ציוד נוסף '!O22","v":0},{"$f":"'ד. ציוד נוסף '!P22","v":0},{"$f":"IF(F36=0,\"\",'ד. ציוד נוסף '!Q22)","v":""},{"$f":"'ד. ציוד נוסף '!R22","v":0}]
[{"$f":"'ד. ציוד נוסף '!B23","v":0},{"$f":"'ד. ציוד נוסף '!D23","v":0},{"$f":"'ד. ציוד נוסף '!M23","v":0},null,{"$f":"'ד. ציוד נוסף '!O23","v":0},{"$f":"'ד. ציוד נוסף '!P23","v":0},{"$f":"IF(F37=0,\"\",'ד. ציוד נוסף '!Q23)","v":""},{"$f":"'ד. ציוד נוסף '!R23","v":0}]
[{"$f":"'ד. ציוד נוסף '!B24","v":0},{"$f":"'ד. ציוד נוסף '!D24","v":0},{"$f":"'ד. ציוד נוסף '!M24","v":0},null,{"$f":"'ד. ציוד נוסף '!O24","v":0},{"$f":"'ד. ציוד נוסף '!P24","v":0},{"$f":"IF(F38=0,\"\",'ד. ציוד נוסף '!Q24)","v":""},{"$f":"'ד. ציוד נוסף '!R24","v":0}]
[{"$f":"'ד. ציוד נוסף '!B25","v":0},{"$f":"'ד. ציוד נוסף '!D25","v":0},{"$f":"'ד. ציוד נוסף '!M25","v":0},null,{"$f":"'ד. ציוד נוסף '!O25","v":0},{"$f":"'ד. ציוד נוסף '!P25","v":0},{"$f":"IF(F39=0,\"\",'ד. ציוד נוסף '!Q25)","v":""},{"$f":"'ד. ציוד נוסף '!R25","v":0}]
[{"$f":"'ד. ציוד נוסף '!B26","v":0},{"$f":"'ד. ציוד נוסף '!D26","v":0},{"$f":"'ד. ציוד נוסף '!M26","v":0},null,{"$f":"'ד. ציוד נוסף '!O26","v":0},{"$f":"'ד. ציוד נוסף '!P26","v":0},{"$f":"IF(F40=0,\"\",'ד. ציוד נוסף '!Q26)","v":""},{"$f":"'ד. ציוד נוסף '!R26","v":0}]
[{"$f":"'ד. ציוד נוסף '!B27","v":0},{"$f":"'ד. ציוד נוסף '!D27","v":0},{"$f":"'ד. ציוד נוסף '!M27","v":0},null,{"$f":"'ד. ציוד נוסף '!O27","v":0},{"$f":"'ד. ציוד נוסף '!P27","v":0},{"$f":"IF(F41=0,\"\",'ד. ציוד נוסף '!Q27)","v":""},{"$f":"'ד. ציוד נוסף '!R27","v":0}]
[{"$f":"'ד. ציוד נוסף '!B28","v":0},{"$f":"'ד. ציוד נוסף '!D28","v":0},{"$f":"'ד. ציוד נוסף '!M28","v":0},null,{"$f":"'ד. ציוד נוסף '!O28","v":0},{"$f":"'ד. ציוד נוסף '!P28","v":0},{"$f":"IF(F42=0,\"\",'ד. ציוד נוסף '!Q28)","v":""},{"$f":"'ד. ציוד נוסף '!R28","v":0}]
["סה\"כ ציוד אחר כולל מע\"מ",null,{"$f":"SUM(C22:C42)","v":0},null,{"$f":"A43","v":"סה\"כ ציוד אחר כולל מע\"מ"},null,null,0]
["סה\"כ בקשה כולל מע\"מ",null,{"$f":"C20+C43","v":0},null,{"$f":"A44","v":"סה\"כ בקשה כולל מע\"מ"},null,null,{"$f":"H20+H43","v":0}]